Workbook

Sheet Summary
A1: Farmdale Water District
A2: Payroll Summary
A3: December 31, 2024
A5: SOI: Quarterly/monthly Form 941s, W-2s, W-3, K-5, K-3s, UI-3s, FC-Form Q2s
A7: Period | B7: Salaries & Wages | C7: FICA Taxable Gross | D7: Social Security | E7: Medicare | F7: SUTA
A8: January - March | B8: 56493.92 | C8: 58290.37 | D8: =C8*0.062 -> 3614.00294 | E8: =C8*0.0145 -> 845.210365 | F8: 1134.93
A9: April - June | B9: 59185.16 | C9: 60944.16 | D9: =C9*0.062 -> 3778.53792 | E9: =C9*0.0145 -> 883.69032 | F9: 397.24
A10: July - September (amended) | B10: 62149.26 | C10: 63974.35 | D10: 3966.4097 | E10: 927.628075 | F10: 121.31
A11: October - December | B11: 72335.98 | C11: 74422.56 | D11: 4614.19872 | E11: 1079.12712 | F11: 210.55
A12: Totals per 941s | B12: =SUM(B8:B11) -> 250164.32 | C12: =SUM(C8:C11) -> 257631.44 | D12: =SUM(D8:D11) -> 15973.14928 | E12: =SUM(E8:E11) -> 3735.65588 | F12: =SUM(F8:F11) -> 1864.03
A13: Employee Retirement | B13: =2758.98+177.9+2686.32+1843.92 -> 7467.12
A14: Total Gross Salaries & Wages | B14: =SUM(B12:B13) -> 257631.44 | E14: =SUM(D12:F12) -> 21572.83516
D15: Employer Payroll Taxes
A18: Accrued Payroll Taxes
A19: Form 941 | B19: -17.43
A20: Kentucky Unemployment | B20: 210.55
A21: Amended KUI (Q3) | B21: -81.65
A22: Kentucky Withholding | B22: 908.25
A23: Franklin County | B23: 744.29
A24: Total Accrued Payroll Taxes | B24: =SUM(B19:B23) -> 1764.01
A29: Employee Salaries & Wages:
A30: Mike Hieatt | B30: 828
A31: Chris Ralph | B31: 49705.51
A32: Chris Obrien | B32: 49188.75
A33: Jan Sanders | B33: 58177.6
A34: Deavon Johnston | B34: 33024
A35: Yvonne Poole | B35: 4147.33
A36: Matthew Perry | B36: 35772.25
A37: Holly Mayer | B37: 6208
A38: Harmon Clark | B38: 5292
A39: Zachary Pelfrey | B39: 688
A40: Total Employee Salaries & Wages | C40: =SUM(B30:B39) -> 243031.44
A42: Officers Salaries:
A43: Scott Wooldridge | B43: 4800
A44: Eddie Harrod | B44: 5000
A45: Jonathan Dailey | B45: 4800
A46: Total Officers | C46: =SUM(B43:B45) -> 14600
A48: Total Salaries & Wages | C48: =SUM(C40:C46) -> 257631.44

Sheet Retirement
A1: Farmdale Water District
A2: Retirement
A3: December 31, 2024
A5: Amount paid per month per Jan's payroll ledger (Gross less FICA) | B5: J. Sanders1 | C5: D. Johnston2 | D5: C.Ralph2 | E5: C.Obrien3 | F5: Gross Salary | G5: Employee Portion (5% Sanders, Johnston, Ralph//Obrien after December) | H5: Additional Employee Portion (+1% Johnston, Ralph, Obrien) | I5: Employer Portion4 | J5: Total Due | K5: Actual Paid | L5: Difference
A6: January | B6: =(1118.8*4)*0.9235 -> 4132.8472 | C6: =(640*4)*0.9235 -> 2364.16 | D6: =(987+819+913.5+1013.25)*0.9235 -> 3447.194625 | E6: 0 | F6: =SUM(B6:D6) -> 9944.201825 | G6: =(B6+C6+D6+E6)*0.05 -> 497.2100913 | H6: =(C6+D6+E6)*0.01 -> 58.11354625 | I6: =F6*0.2334 -> 2320.976706 | J6: =G6+I6+H6 -> 2876.300343 | K6: 3327.07 | L6: =K6-J6 -> 450.7696565
A7: February | B7: =(1118.8*4)*0.9235 -> 4132.8472 | C7: =2560*0.9235 -> 2364.16 | D7: =(1233.75+1060.5+808.5+819)*0.9235 -> 3621.736125 | E7: 0 | F7: 10118.74332 | G7: 505.9371663 | H7: =(C7+D7+E7)*0.01 -> 59.85896125 | I7: =F7*0.2334 -> 2361.714692 | J7: =G7+I7+H7 -> 2927.51082 | K7: 3028.55 | L7: =K7-J7 -> 101.0391804
A8: March | B8: =(1118.8*5)*0.9235 -> 5166.059 | C8: =(640*5)*0.9235 -> 2955.2 | D8: =(903+840+903+840+840)*0.9235 -> 3995.061 | E8: 0 | F8: 12116.32 | G8: 605.816 | H8: 69.50261 | I8: 2827.949088 | J8: 3503.267698 | K8: 2942.62 | L8: -560.647698
A9: April | B9: =(1118.8*4)*0.9235 -> 4132.8472 | C9: =(640*4)*0.9235 -> 2364.16 | D9: =(882+819+840+840)*0.9235 -> 3122.3535 | E9: 0 | F9: 9619.3607 | G9: 480.968035 | H9: 54.865135 | I9: 2245.158787 | J9: 2780.991957 | K9: 3081.51 | L9: 300.5180426
A10: May | B10: =(1118.8*5)*0.9235 -> 5166.059 | C10: =(640+640+640+512+640)*0.9235 -> 2836.992 | D10: =(840+880+880+880+825)*0.9235 -> 3975.6675 | E10: 0 | F10: 11978.7185 | G10: 598.935925 | H10: 68.126595 | I10: 2795.832898 | J10: 3462.895418 | K10: 3226.88 | L10: -236.0154179
A11: June | B11: =(1118.8*4)*0.9235 -> 4132.8472 | C11: =(640*4)*0.9235 -> 2364.16 | D11: =(880+880+913+946)*0.9235 -> 3342.1465 | E11: 0 | F11: 9839.1537 | G11: 491.957685 | H11: 57.063065 | I11: 2296.458474 | J11: 2845.479224 | K11: 2845.46 | L11: -0.01922358
A12: July | B12: =(1118.8*4)*0.9235 -> 4132.8472 | C12: =(640*4)*0.9235 -> 2364.16 | D12: =(880+1012+1078+880)*0.9235 -> 3555.475 | E12: 0 | F12: 10052.4822 | G12: 502.62411 | H12: 59.19635 | I12: =F12*0.1971 -> 1981.344242 | J12: 2543.164702 | K12: 2943.48 | L12: 400.3152984
A13: August | B13: =(1118.8*5)*0.9235 -> 5166.059 | C13: =(640*5)*0.9235 -> 2955.2 | D13: =(836+1012+880+880+979)*0.9235 -> 4236.0945 | E13: 0 | F13: 12357.3535 | G13: 617.867675 | H13: 71.912945 | I13: =F13*0.1971 -> 2435.634375 | J13: 3125.414995 | K13: 2787.53 | L13: -337.8849949
A14: September | B14: =(1118.8*4)*0.9235 -> 4132.8472 | C14: =(640*4)*0.9235 -> 2364.16 | D14: =(980+980+1035.13+980)*0.9235 -> 3671.032555 | E14: 0 | F14: 10168.03975 | G14: 508.4019877 | H14: 60.35192555 | I14: 2004.120636 | J14: 2572.874549 | K14: 2711.46 | L14: 138.585451
A15: October | B15: =(1118.8*4)*0.9235 -> 4132.8472 | C15: =(640*4)*0.9235 -> 2364.16 | D15: =(1696.63+1127+980+1127)*0.9235 -> 4553.436805 | E15: 0 | F15: 11050.44401 | G15: 552.5222003 | H15: 69.17596805 | I15: 2178.042513 | J15: 2799.740682 | K15: 3354.09 | L15: 554.3493183
A16: November | B16: =5594*0.9235 -> 5166.059 | C16: =(640+640+640+512+640)*0.9235 -> 2836.992 | D16: =(918.75+980+1225+1004.5+980)*0.9235 -> 4717.468875 | E16: 0 | F16: 12720.51987 | G16: 636.0259937 | H16: 75.54460875 | I16: 2507.214467 | J16: 3218.78507 | K16: 2731.99 | L16: -486.7950699
A17: December | B17: =4475.2*0.9235 -> 4132.8472 | C17: =2560*0.9235 -> 2364.16 | D17: =3969*0.9235 -> 3665.3715 | E17: =3998.5*0.9235 -> 3692.61475 | F17: 10162.3787 | G17: =(B17+C17+D17+E17)*0.05 -> 692.7496725 | H17: 97.2214625 | I17: 2003.004842 | J17: 2792.975977 | K17: 3671.83 | L17: 878.8540232
A19: Totals | B19: =SUM(B6:B18) -> 53727.0136 | C19: 30497.664 | D19: 45903.03848 | E19: 3692.61475 | F19: =SUM(F6:F18) -> 130127.7161 | G19: 6691.016542 | H19: 800.9331724 | I19: =SUM(I6:I17) -> 27957.45172 | J19: =SUM(J6:J18) -> 35449.40143 | K19: =SUM(K6:K18) -> 36652.47 | L19: =SUM(L6:L18) -> 1203.068566
A20: To reconcile the above to W-2s: | I20: GL #514 | L20: (Immaterial)
A21: Add back FICA, 7.65% | B21: =3607.01+843.58 -> 4450.59 | C21: =2047.49+478.85 -> 2526.34 | D21: =3081.74+720.73 -> 3802.47 | E21: 305.89 | I21: (before pension adj)
A22: + wages before eligibility | B22: 0 | C22: 0 | D22: 0 | E22: 45708.01
A23: Gross Wages | B23: =B19+B21+B22 -> 58177.6036 | C23: =C19+C21+C22 -> 33024.004 | D23: 49705.50848 | E23: =E19+E21+E22 -> 49706.51475
A24: Per W-2 | B24: 58177.6 | C24: 33024 | D24: 49705.51 | E24: 49706.51
A25: Difference | B25: =B23-B24 -> 0.003600000004 | C25: =C23-C24 -> 0.004000000001 | D25: =D23-D24 -> -0.001515000011 | E25: 0.00475
A28: Retirement Payable
A29: Total Due @ 12/31/24 | B29: =K17 -> 3671.83
A30: +/- additional amount due/(overpaid) | B30: =-L19 -> -1203.068566
B31: =SUM(B29:B30) -> 2468.761434
B32: GL #210
A37: Notes:
A38: 1 - Jan Sanders joined before 9/1/2008, making her contribution percentage 5%.
A39: 2 - Deavon Johnston and Chris Ralph joined the pension plan after 9/1/2008, which requires them to contribute an additional 1% for health insurance costs.
A40: 3 - Chris Obrien became eligible in December 2024 (must pay additional 1% for health insurance)
A41: 4 - 23.34% January - June, 19.71% July - December.

Sheet Pension Note
A1: Farmdale Water District
A2: Pension Note Information
A3: December 31, 2024
D4: Pension Portion | F4: Insurance Portion | H4: Total
A5: January - June | B5: =SUM(Retirement!I6:I11) -> 14848.09064 | D5: =B5*(23.34/23.34) -> 14848.09064 | F5: =B5*(0/23.34) -> 0 | H5: =SUM(D5:F5) -> 14848.09064
A6: July - December | B6: =SUM(Retirement!I12:I17) -> 13109.36107 | D6: =B6*(19.71/19.71) -> 13109.36107 | F6: =B6*(0/19.71) -> 0 | H6: =SUM(D6:F6) -> 13109.36107
A7: Total Pension Expense per worksheet | B7: =SUM(B5:B6) -> 27957.45172 | D7: =D5+D6 -> 27957.45172 | F7: =F5+F6 -> 0 | H7: =D7+F7 -> 27957.45172
A10: The following information comes from the 2024 GASB 68 Proportionate Share Audit Report with Schedules from KPPA's website (page numbers provided below):
A12: Net Pension Liability | B12: 216790 | D12: GL #224
A13: Appendix A, Page 33 - Net Pension Liability, Discount Rate 6.50% (Code V637)
A16: Calculation of Deferred Inflows and Outflows:
B17: Outflows | D17: Inflows
A18: Difference between expected and actual results | B18: 10493 | C18: 1 | D18: 0 | E18: 1
A19: Change in assumptions | B19: 0 | C19: 2 | D19: 9795 | E19: 2
A20: Net difference between projected and actual earnings on plan investments | B20: 0 | C20: 3 | D20: 13938
A21: Changes in proportion and difference between employer contributions and proportionate share of contributions | B21: 0 | C21: 4 | D21: 33035 | E21: 4
A22: Contributions subsequent to the measurement date | B22: =D6 -> 13109.36107 | C22: 5 | D22: 0
A23: Total | B23: =SUM(B18:B22) -> 23602.36107 | D23: =SUM(D18:D22) -> 56768
B24: GL #191 | D24: GL #231
A26: Appendix A, Page 50:
A27: 1 - "Liability Experience"
A28: 2 - "Assumption Changes"
A29: 3 - Inflows "Investment Experience" less Outflows "Investment Experience" (if positive, Inflow - if negative, Outflow column)
A30: 4 - "Changes in Proportion …."
A31: 5 - See "Pension Portion" from above - July - December

Sheet Pension Expense
A1: Farmdale Water District
A2: Pension Expense Calculation with Change in Net Pension Liability
A3: 12.31.24
A5: To assist with the calculation, KRS has provided an example of using the spreadsheet to calculate pension expense as follows:
A6: Step 1 | B6: Net Pension Liability - End of Year = Schedule B, "Net Pension Liability" (Column E)
A7: Step 2 | B7: - Net Pension Liability Beginning of Year = Schedule B, "FYE2020 Net Pension Liability" (Column C)
A8: Step 3 | B8: - Deferred Outflows = Schedule B, "Total Deferred Outflows of Resources" (Column K)
A9: Step 4 | B9: + Year 1 Amortization of Deferred Outflows = 0
A10: Step 5 | B10: + Amortization of Prior Year Deferred Outflows = 0
A11: Step 6 | B11: + Deferred Inflows Occurring this Year = Schedule B, "Total Deferred Inflows of Resources" (Column Q)
A12: Step 7 | B12: - Amortization of Prior Year Deferred Inflows = 0
A13: Step 8 | B13: + Reductions to Ending Net Pension Liability due to Contributions Paid = Schedule A, "Actual Employer Contributions" (Column D)
A14: Total | B14: Pension Expense
A16: Step 1 | C16: Net pension liability -- end of year | F16: 216790
A17: Step 2 | C17: Net pension liability -- beginning of year | F17: -261922
F18: =SUM(F16:F17) -> -45132
A19: Step 3 | C19: Deferred outflows occurring this year | F19: -23602
A20: Step 4 | C20: + Year 1 Amortizaton of Deferred Outflows | F20: 0
A21: Step 5 | C21: Prior Year Deferred Outflows | F21: 31688
A22: Step 6 | C22: Deferred inflows occurring this year | F22: 56768
A23: Step 7 | C23: Prior Year Deferred Inflows | F23: -62307
A24: Step 8 | C24: Contributions paid | F24: 27957
A25: Equals | C25: Total pension expense/(benefit) for the year | F25: =SUM(F18:F24) -> -14628 | G25: GL #514
C26: Actuarial Calculated Pension Expense | F26: 12074
C27: Variance | F27: =F26-F25 -> 26702

Sheet OPEB Note
A1: Farmdale Water District
A2: OPEB Note Information
A3: December 31, 2024
D4: Pension Portion | F4: Insurance Portion | H4: Total
A5: January - June | B5: =SUM(Retirement!I6:I11) -> 14848.09064 | D5: =B5*(23.34/23.34) -> 14848.09064 | F5: =B5*(0/23.34) -> 0 | H5: =SUM(D5:F5) -> 14848.09064
A6: July - December | B6: =SUM(Retirement!I12:I17) -> 13109.36107 | D6: =B6*(19.71/19.71) -> 13109.36107 | F6: =B6*(0/19.71) -> 0 | H6: =SUM(D6:F6) -> 13109.36107
A7: Total Pension Expense per worksheet | B7: =SUM(B5:B6) -> 27957.45172 | D7: =D5+D6 -> 27957.45172 | F7: =F5+F6 -> 0 | H7: =D7+F7 -> 27957.45172
A9: The following information comes from the 2024 GASB 75 Proportionate Share Audit Report with Schedules from KPPA's website (page numbers provided below):
A11: Net OPEB Liability/(Asset) | B11: -6277 | D11: GL #225
A12: Appendix A, Page 38 - Net OPEB Liability, Discount Rate 5.99%
A15: Calculation of Deferred Inflows and Outflows:
B16: Outflows | D16: Inflows
A17: Difference between expected and actual results | B17: 3483 | C17: 1 | D17: 49391 | E17: 1
A18: Change in assumptions | B18: 5688 | C18: 2 | D18: 4429 | E18: 2
A19: Net difference between projected and actual earnings on plan investments | B19: 0 | C19: 3 | D19: 5729
A20: Changes in proportion and difference between employer contributions and proportionate share of contributions | B20: 2512 | C20: 4 | D20: 18111 | E20: 4
A21: Contributions subsequent to the measurement date | B21: 1702 | C21: 5 | D21: 0
A22: Total | B22: =SUM(B17:B21) -> 13385 | D22: =SUM(D17:D21) -> 77660
B23: GL #192 | D23: GL #232
A25: Appendix A, Page 72:
A26: 1 - "Liability Experience"
A27: 2 - "Assumption Changes"
A28: 3 - Inflows "Investment Experience" less Outflows "Investment Experience" (if positive, Inflow - if negative, Outflow column)
A29: 4 - "Changes in Proportion …."
A30: 5 - See "Insurance Portion" from above - July - December, plus "implicity subsidy" from Appendix A, Page 55

Sheet OPEB Expense
A1: Farmdale Water District
A2: OPEB Expense Calculation with Change in Net OPEB Liability
A3: 12.31.24
A5: To assist with the calculation, KRS has provided an example of using this spreadsheet to calculate OPEB expense as follows:
A6: Step 1 | B6: Net Pension Liability - End of Year = Schedule B, "Net OPEB Liability" (Column E)
A7: Step 2 | B7: - Net Pension Liability Beginning of Year = Schedule B, "FYE2020 Net OPEB Liability" (Column C)
A8: Step 3 | B8: - Deferred Outflows = Schedule B, "Total Deferred Outflows of Resources" (Column K)
A9: Step 4 | B9: + Year 1 Amortization of Deferred Outflows = 0
A10: Step 5 | B10: + Amortization of Prior Year Deferred Outflows = 0
A11: Step 6 | B11: + Deferred Inflows Occurring this Year = Schedule B, "Total Deferred Inflows of Resources" (Column Q)
A12: Step 7 | B12: - Amortization of Prior Year Deferred Inflows = 0
A13: Step 8 | B13: + Reductions to Ending Net OPEB Liability due to Contributions Paid = Schedule A, "2021 Actual Employer Contributions" (Column D)
A14: Total | B14: OPEB Expense
A16: Step 1 | C16: Net OPEB liability/(asset) -- end of year | F16: -6277
A17: Step 2 | C17: Net OPEB liability/(asset) -- beginning of year | F17: 5636
F18: =SUM(F16:F17) -> -641
A19: Step 3 | C19: Deferred outflows occurring this year | F19: -13385
A20: Step 4 | C20: + Year 1 Amortizaton of Deferred Outflows | F20: 0
A21: Step 5 | C21: Prior Year Deferred Outflows | F21: 25567
A22: Step 6 | C22: Deferred inflows occurring this year | F22: 77660
A23: Step 7 | C23: Prior Year Deferred Inflows | F23: -112630
A24: Step 8 | C24: Health Insurance paid during the year | F24: 32819
A25: Equals | C25: Total opeb expense/(benefit) for the year | F25: =SUM(F18:F24) -> 9390 | G25: GL #503
C26: Actuarial Calculated OPEB Expense | F26: -14638
C27: Variance | F27: =F25-F26 -> 24028

Sheet x
